Workbook

Sheet 一般债券 (hidden)
A1: 附表1：
A2: 2025年开平市新增一般债务限额安排项目情况表
H3: 单位：万元
A4: 序号 | B4: 县（市、区） | C4: 项目名称 | D4: 项目单位 | E4: 项目领域 | F4: 建设状态 | G4: 项目总投资 | H4: 安排金额
C5: 无

Sheet 一般（本级）
A1: 附表3
A2: 2025年开平市本级一般公共预算收支调整表
A3: 编制单位：开平市财政局 | J3: 单位：万元
A4: 收入 | F4: 支出
A5: 项目 | B5: 年初预算 | C5: 第一次调整预算后金额 | D5: 第二次调整预算后金额 | E5: 相比第一次调整预算增减额 | F5: 项目 | G5: 年初预算 | H5: 第一次调整预算后金额 | I5: 第二次调整预算后金额 | J5: 相比第一次调整预算增减额
A6: 一、一般公共预算收入 | B6: =B7+B8 -> 170,771 | C6: =C7+C8 -> 170,771 | D6: =D7+D8 -> 177,752 | E6: =D6-C6 -> 6,981 | F6: 一、一般公共预算支出 | G6: 545,238 | H6: 545,283 | I6: 556,874 | J6: =I6-H6 -> 11,591
A7: （一）税收收入 | B7: 34,426 | C7: 34,426 | D7: 41,407 | E7: 6,981 | F7: 二、转移性支出 | G7: =G8+G23+G13 -> 81,677 | H7: 81,677 | I7: 159,638 | J7: =I7-H7 -> 77,961
A8: （二）非税收入 | B8: 136,345 | C8: 136,345 | D8: 136,345 | E8: 0 | F8: （一）上解上级支出 | G8: =G9+G10+G11+G12 -> 51,252 | H8: 51,252 | I8: 129,213 | J8: 77,961
A9: 二、转移性收入 | B9: =B10+B18 -> 438,373 | C9: =C10+C18 -> 438,373 | D9: =D10+D18 -> 520,944 | E9: 82,571 | F9: 体制上解支出 | G9: 6,513 | H9: 6,513 | I9: =6513+77961 -> 84,474 | J9: 77,961 | R9: 税收 | S9: 非税 | T9: 合计 | U9: 支出
A10: （一）上级补助收入 | B10: =B11+B16+B17 -> 330,155 | C10: =C11+C16+C17 -> 330,155 | D10: =D11+D16+D17 -> 330,155 | E10: 0 | F10: 出口退税专项上解支出 | G10: 8,116 | H10: 8,116 | I10: 8,116 | J10: 0 | Q10: 2022年实绩 | R10: 25859 | S10: 152477 | T10: =R10+S10 -> 178336 | U10: 492966
A11: 1、返还性收入 | B11: 29,944 | C11: 29,944 | D11: 29,944 | F11: 成品油价格和税费改革专项上解支出 | Q11: 2023年年初预算 | R11: 58198 | S11: 113681 | T11: 171879 | U11: 505350
A12: 增值税和消费税税收返还收入 | B12: 8,333 | C12: 8,333 | D12: 8,333 | F12: 专项上解支出 | G12: 36,623 | H12: 36,623 | I12: =36623 -> 36,623 | J12: =I12-H12 -> 0 | Q12: 比上年实绩 | R12: =R11/R10-1 -> 125.06% | S12: -25.44% | T12: -3.62% | U12: 2.51%
A13: 所得税基数返还收入 | B13: 4,681 | C13: 4,681 | D13: 4,681 | F13: （二）补助下级支出 | G13: =G19+G20 -> 30,425 | H13: 30,425 | I13: 30,425 | J13: =I13-H13 -> 0 | Q13: 2023年调整预算 | R13: 38198 | S13: 119833 | T13: 158031 | U13: 530587
A14: 成品油价格和税费改革税收返还收入 | B14: 2,252 | C14: 2,252 | D14: 2,252 | F14: 1、返还性支出 | Q14: 比上年实绩 | R14: =R13/R10-1 -> 47.72% | S14: -21.41% | T14: -11.39% | U14: 7.63%
A15: 其他税收返还收入 | B15: 14,678 | C15: 14,678 | D15: 14,678 | F15: 增值税和消费税税收返还支出 | Q15: 比年初预算 | R15: =R13-R11 -> -20000 | S15: 6152 | T15: -13848 | U15: 25237
A16: 2、一般性转移支付收入 | B16: 265,908 | C16: 265,908 | D16: 265,908 | E16: =D16-C16 -> 0 | F16: 所得税基数返还支出
A17: 3、专项转移支付收入 | B17: 34,303 | C17: 34,303 | D17: 34,303 | F17: 成品油价格和税费改革税收返还支出
A18: （二）市与镇一般性转移性支付收入 | B18: 108,218 | C18: 108,218 | D18: 190,789 | E18: 82,571 | F18: 其他税收返还支出
F19: 2、一般性转移支付 | G19: 7,331 | H19: 7,331 | I19: 7,331 | J19: =I19-H19 -> 0
F20: 3、专项转移支付支出 | G20: 23,094 | H20: 23,094 | I20: 23,094 | J20: 0
A21: 三、债务转贷收入 | B21: 1,329 | C21: 1,374 | D21: 1,374 | E21: 0 | F21: 三、地方政府债务还本支出 | G21: 187 | H21: 187 | I21: 187 | J21: 0
A22: （一）再融资债券收入 | B22: 1,329 | C22: 1,374 | D22: 1,374 | F22: 四、债务转贷支出
A23: （二）一般债券收入 | F23: 五、安排预算稳定调节基金
A24: 四、上年结余 | B24: 432 | C24: 432 | D24: 432 | E24: =D24-C24 -> 0 | F24: 六、调出资金
A25: 五、调入资金 | B25: 478 | C25: 478 | D25: 478 | E25: 0 | F25: 七、年终结余 | J25: =I25-H25 -> 0
A26: 六、动用预算稳定调节基金 | B26: 8,515 | C26: 8,515 | D26: 8,515
A27: 七、区域间转移性收入 | B27: 7,204 | C27: 7,204 | D27: 7,204 | E27: =D27-C27 -> 0
A28: 收入总计 | B28: =B26+B25+B9+B6+B24+B27+B21 -> 627,102 | C28: =C26+C25+C9+C6+C24+C27+C21 -> 627,147 | D28: =D26+D25+D9+D6+D24+D27+D21 -> 716,699 | E28: =E26+E25+E9+E6+E24+E27+E23 -> 89,552 | F28: 支出总计 | G28: =G6+G7+G21+G22+G23+G24+G25 -> 627,102 | H28: 627,147 | I28: 716,699 | J28: 89,552
I30: =D28-I28 -> 0
